fUST/lending_fUST_20241116
["ID","MTS","AMOUNT","RATE_DAILY","PERIOD"]
[342268204,1731688705591,287.50257031,0.00026,60]
[342268205,1731688723810,215.6,0.0001107,2]
[342268208,1731688998871,-1843.38418889,0.00012707,2]
[342268209,1731688998892,-4588.4717163,0.00012835,2]
[342268210,1731688998913,-300.0,0.00013597,2]
[342268211,1731688998935,-300.0,0.00013597,2]
[342268212,1731688998957,-5471.21152528,0.00013598,2]
[342268213,1731688998978,-338.03483722,0.00013698,2]
[342268214,1731688999000,-500.0,0.00013698,2]
[342268215,1731688999021,-500.0,0.00013698,2]
[342268216,1731688999044,-500.0,0.00013698,2]
[342268217,1731688999065,-288.83,0.00013698,2]
[342268218,1731688999086,-500.0,0.00013698,2]
[342268219,1731688999107,-2336.0,0.00013698,2]
[342268220,1731688999128,-14173.57,0.00013698,2]
[342268221,1731688999148,-1905.51,0.00013698,2]
[342268222,1731688999169,-500.0,0.00013698,2]
[342268223,1731688999189,-500.0,0.00013698,2]
[342268224,1731688999212,-1686.16,0.00013698,2]
[342268225,1731688999233,-1546.83,0.00013698,2]
[342268226,1731688999253,-500.0,0.00013698,2]
[342268227,1731688999273,-500.0,0.00013698,2]
[342268228,1731688999301,-2502.18,0.00013698,2]
[342268229,1731688999322,-805.87,0.00013698,2]
[342268231,1731688999344,-500.0,0.00013698,2]
[342268232,1731688999365,-3863.74,0.00013698,2]
[342268233,1731688999390,-500.0,0.00013698,2]
[342268234,1731688999411,-500.0,0.00013698,2]
[342268235,1731688999434,-20755.92,0.00013698,2]
[342268236,1731688999456,-1757.8,0.00013698,2]
[342268237,1731688999478,-961.39,0.00013698,2]
[342268238,1731688999500,-500.0,0.00013698,2]
[342268239,1731688999522,-4170.31,0.00013698,2]
[342268240,1731688999545,-500.0,0.00013698,2]
[342268241,1731688999567,-500.0,0.00013698,2]
[342268242,1731688999588,-500.0,0.00013698,2]
[342268243,1731688999610,-500.0,0.00013698,2]
[342268244,1731688999633,-500.0,0.00013698,2]
[342268245,1731688999655,-500.0,0.00013698,2]
[342268246,1731688999679,-894.46,0.00013698,2]
[342268247,1731688999701,-2372.49,0.00013698,2]
[342268248,1731688999724,-503.57,0.00013698,2]
[342268249,1731688999747,-500.0,0.00013698,2]
[342268250,1731688999770,-2826.2,0.00013698,2]
[342268251,1731688999795,-2190.69,0.00013698,2]
[342268252,1731688999816,-2525.62,0.00013698,2]
[342268253,1731688999837,-500.0,0.00013698,2]
[342268254,1731688999859,-500.0,0.00013698,2]
[342268255,1731688999881,-2019.22,0.00013698,2]
[342268256,1731688999904,-500.0,0.00013698,2]
[342268257,1731688999929,-500.0,0.00013698,2]
[342268258,1731688999953,-3584.64,0.00013698,2]
[342268259,1731688999976,-609.02,0.00013698,2]
[342268260,1731688999999,-500.0,0.00013698,2]
[342268261,1731689000022,-500.0,0.00013698,2]
[342268262,1731689000046,-528.5,0.00013698,2]
[342268263,1731689000068,-686.2673666,0.00013699,2]
[342268264,1731689000091,-298.755901,0.00013699,2]
[342268265,1731689000112,-163.718677,0.00013699,2]
[342268266,1731689000134,-2285.63578771,0.00013816,2]
[342268268,1731689059045,-3000.0,0.000151,30]
[342268269,1731689059068,-3000.0,0.0001511,30]
[342268270,1731689059092,-3000.0,0.0001512,30]
[342268271,1731689059114,-3000.0,0.0001513,30]
[342268272,1731689059136,-3000.0,0.0001514,30]
[342268273,1731689059158,-3000.0,0.0001515,30]
[342268274,1731689059180,-3000.0,0.0001516,30]
[342268275,1731689059201,-3000.0,0.0001517,30]
[342268276,1731689059222,-3000.0,0.0001518,30]
[342268277,1731689059244,-3000.0,0.0001519,30]
[342268278,1731689059265,-3000.0,0.000152,30]
[342268279,1731689059286,-3000.0,0.0001521,30]
[342268280,1731689059307,-3000.0,0.0001522,30]
[342268281,1731689059331,-3000.0,0.0001523,30]
[342268282,1731689059356,-3000.0,0.0001524,30]
[342268283,1731689059378,-3845.312617,0.0001525,30]
[342268284,1731689176069,-4741.39126008,0.0002,30]
[342268470,1731689438958,-359.0618134,0.00012938,2]
[342268472,1731689438970,-204.34128785,0.00013598,2]
[342268474,1731689438979,-300.0,0.00013697,2]
[342268476,1731689438988,-300.0,0.00013697,2]
[342268478,1731689438998,-397.3405818,0.00013698,2]
[342268480,1731689439007,-500.0,0.00013698,2]
[342268482,1731689439016,-500.0,0.00013698,2]
[342268484,1731689439026,-500.0,0.00013698,2]
[342268486,1731689439036,-500.0,0.00013698,2]
[342268488,1731689439046,-500.0,0.00013698,2]
[342268490,1731689439054,-438.13381256,0.00013698,2]
[342268492,1731689439063,-500.0,0.00013698,2]
[342268493,1731689439073,-500.0,0.00013698,2]
[342268495,1731689439082,-500.0,0.00013698,2]
[342268497,1731689439092,-570.84,0.00013698,2]
[342268499,1731689439102,-500.0,0.00013698,2]
[342268501,1731689439111,-500.0,0.00013698,2]
[342268503,1731689439121,-674.46,0.00013698,2]
[342268505,1731689439130,-500.0,0.00013698,2]
[342268507,1731689439139,-500.0,0.00013698,2]
[342268509,1731689439150,-500.0,0.00013698,2]
[342268511,1731689439159,-500.0,0.00013698,2]
[342268513,1731689439169,-500.0,0.00013698,2]
[342268515,1731689439178,-500.0,0.00013698,2]
[342268517,1731689439188,-500.0,0.00013698,2]
[342268519,1731689439197,-500.0,0.00013698,2]
[342268521,1731689439206,-647.01,0.00013698,2]
[342268523,1731689439215,-500.0,0.00013698,2]
[342268525,1731689439225,-500.0,0.00013698,2]
[342268527,1731689439234,-500.0,0.00013698,2]
[342268529,1731689439243,-500.0,0.00013698,2]
[342268531,1731689439252,-2397.92,0.00013698,2]
[342268533,1731689439261,-500.0,0.00013698,2]
[342268535,1731689439271,-807.24,0.00013698,2]
[342268537,1731689439280,-500.0,0.00013698,2]
[342268539,1731689439289,-13583.01,0.00013698,2]
[342268541,1731689439298,-1482.38,0.00013698,2]
[342268543,1731689439307,-500.0,0.00013698,2]
[342268545,1731689439317,-500.0,0.00013698,2]
[342268547,1731689439327,-501.41917426,0.00013698,2]
[342268549,1731689439336,-500.0,0.00013698,2]
[342268551,1731689439345,-500.0,0.00013698,2]
[342268553,1731689439356,-500.0,0.00013698,2]
[342268555,1731689439366,-500.0,0.00013698,2]
[342268557,1731689439375,-500.0,0.00013698,2]
[342268559,1731689439384,-192.24451479,0.00013698,2]
[342268561,1731689439396,-500.0,0.00013698,2]
[342268563,1731689439405,-508.05880793,0.00013698,2]
[342268564,1731689439414,-500.0,0.00013698,2]
[342268566,1731689439423,-19891.09,0.00013698,2]
[342268568,1731689439435,-500.0,0.00013698,2]
[342268571,1731689439450,-500.0,0.00013698,2]
[342268573,1731689439462,-3435.28,0.00013698,2]
[342268575,1731689439471,-3702.75,0.00013698,2]
[342268577,1731689439482,-1684.55,0.00013698,2]
[342268579,1731689439492,-500.0,0.00013698,2]
[342268581,1731689439501,-303.47141674,0.00013698,2]
[342268583,1731689439511,-500.0,0.00013698,2]
[342268585,1731689439523,-597.59970981,0.00013698,2]
[342268587,1731689439533,-500.0,0.00013698,2]
[342268589,1731689439542,-2682.58426616,0.00013698,2]
[342268595,1731689439596,-1313.96573384,0.00013698,2]
[342268596,1731689439606,-857.19,0.00013698,2]
[342268598,1731689439615,-500.0,0.00013698,2]
[342268600,1731689439624,-2273.64,0.00013698,2]
[342268602,1731689439634,-500.0,0.00013698,2]
[342268603,1731689439644,-500.0,0.00013698,2]
[342268605,1731689439654,-541.0,0.00013698,2]
[342268607,1731689439663,-500.0,0.00013698,2]
[342268609,1731689439673,-500.0,0.00013698,2]
[342268610,1731689439682,-1606.30426616,0.00013698,2]
[342268665,1731689440306,-729.69573384,0.00013698,2]
[342268667,1731689440316,-2099.41,0.00013698,2]
[342268669,1731689440325,-1826.11,0.00013698,2]
[342268670,1731689440335,-2708.44,0.00013698,2]
[342268672,1731689440344,-500.0,0.00013698,2]
[342268674,1731689440353,-535.54,0.00013698,2]
[342268676,1731689440363,-500.0,0.00013698,2]
[342268678,1731689440372,-500.0,0.00013698,2]
[342268679,1731689440381,-2420.39,0.00013698,2]
[342268681,1731689440390,-921.33,0.00013698,2]
[342268683,1731689440401,-500.0,0.00013698,2]
[342268685,1731689440411,-635.49,0.00013698,2]
[342268687,1731689440420,-500.0,0.00013698,2]
[342268688,1731689440429,-500.0,0.00013698,2]
[342268690,1731689440442,-1935.09,0.00013698,2]
[342268692,1731689440452,-1615.9,0.00013698,2]
[342268694,1731689440461,-500.0,0.00013698,2]
[342268696,1731689440471,-641.61,0.00013698,2]
[342268697,1731689440481,-500.0,0.00013698,2]
[342268699,1731689440490,-609.92,0.00013698,2]
[342268701,1731689440500,-500.0,0.00013698,2]
[342268703,1731689440511,-500.0,0.00013698,2]
[342268704,1731689440520,-500.0,0.00013698,2]
[342268706,1731689440529,-500.0,0.00013698,2]
[342268708,1731689440538,-500.0,0.00013698,2]
[342268710,1731689440548,-500.0,0.00013815,2]
[342268711,1731689440557,-500.0,0.00013815,2]
[342268713,1731689440566,-160.64229731,0.00013897,2]
[342268715,1731689440575,-528.55640714,0.00013897,2]
[342268717,1731689440584,-500.0,0.00013897,2]
[342268719,1731689440594,-500.0,0.00013897,2]
[342268720,1731689440603,-500.0,0.00013897,2]
[342268722,1731689440613,-500.0,0.00013897,2]
[342268724,1731689440622,-500.0,0.00013897,2]
[342268726,1731689440631,-500.0,0.00013897,2]
[342268727,1731689440640,-500.0,0.00013897,2]
[342268729,1731689440651,-500.0,0.00013897,2]
[342268731,1731689440660,-500.0,0.00013897,2]
[342268733,1731689440669,-144.85153543,0.00013897,2]
[342268735,1731689440686,-355.14846457,0.00013897,2]
[342268737,1731689440695,-500.0,0.00013897,2]
[342268739,1731689440705,-500.0,0.00013897,2]
[342268741,1731689440715,-500.0,0.00013897,2]
[342268742,1731689440725,-500.0,0.00013897,2]
[342268744,1731689440735,-500.0,0.00013897,2]
[342268746,1731689440745,-500.0,0.00013897,2]
[342268748,1731689440754,-500.0,0.00013897,2]
[342268749,1731689440763,-500.0,0.00013897,2]
[342268751,1731689440773,-500.0,0.00013897,2]
[342268753,1731689440783,-500.0,0.00013897,2]
[342268755,1731689440792,-358.68568393,0.00013897,2]
[342268974,1731689443405,-141.31431607,0.00013897,2]
[342268975,1731689443414,-500.0,0.00013897,2]
[342268976,1731689443423,-500.0,0.00013897,2]
[342268977,1731689443432,-464.56444218,0.00013897,2]
[342268978,1731689443445,-500.0,0.00013897,2]
[342268979,1731689443454,-500.0,0.00013897,2]
[342268980,1731689443464,-500.0,0.00013897,2]
[342268981,1731689443473,-500.0,0.00013897,2]
[342268982,1731689443483,-500.0,0.00013897,2]
[342268983,1731689443492,-500.0,0.00013897,2]
[342268984,1731689443501,-500.0,0.00013897,2]
[342268985,1731689443511,-500.0,0.00013897,2]
[342268986,1731689443522,-500.0,0.00013897,2]
[342268987,1731689443532,-270.18779025,0.00013897,2]
[342268988,1731689443542,-459.27589672,0.00013897,2]
[342268989,1731689443551,-500.0,0.00013897,2]
[342268990,1731689443560,-500.0,0.00013897,2]
[342268991,1731689443569,-500.0,0.00013897,2]
[342268992,1731689443579,-500.0,0.00013897,2]
[342268993,1731689443587,-500.0,0.00013897,2]
[342268994,1731689443596,-500.0,0.00013897,2]
[342268995,1731689443605,-500.0,0.00013897,2]
[342268996,1731689443614,-500.0,0.00013897,2]
[342268997,1731689443623,-500.0,0.00013897,2]
[342268998,1731689443632,-500.0,0.00013897,2]
[342268999,1731689443641,-500.0,0.00013897,2]
[342269000,1731689443654,-500.0,0.00013897,2]
[342269001,1731689443663,-500.0,0.00013897,2]
[342269002,1731689443673,-210.03490849,0.00013899,2]
[342269003,1731689443682,-219.24768099,0.00013899,2]
[342269004,1731689443691,-228.17437209,0.00013899,2]
[342269005,1731689443700,-219.90146895,0.00013899,2]
[342269006,1731689443709,-211.23119983,0.00013899,2]
[342269007,1731689443718,-500.0,0.00013899,2]
[342269008,1731689443727,-16809.96837957,0.000139,2]
[342275787,1731690429358,3153.05,0.00026,60]
[342275835,1731690638564,-300.0,0.00012608,2]
[342275837,1731690638574,-300.0,0.00012608,2]
[342275839,1731690638583,-746.5,0.00012609,2]
[342275879,1731690811611,150.0,0.00025228,120]
[342275930,1731691832748,-600.0,0.00011751,2]
[342275931,1731691832758,-300.0,0.00012448,2]
[342275932,1731691832768,-300.0,0.00012448,2]
[342275933,1731691832779,-177.53941455,0.00012449,2]
[342275934,1731691832791,-1678.62097875,0.00012449,2]
[342276564,1731691843699,-4439.90372425,0.00012449,2]
[342281258,1731693042935,-411.700001,0.00012094,2]
[342281485,1731693045932,-10082.99956113,0.00012094,2]
[342281486,1731693045942,-203.5200846,0.00012143,2]
[342281487,1731693045951,-203.5200846,0.00012266,2]
[342281488,1731693045961,-300.0,0.00012299,2]
[342281489,1731693045970,-300.0,0.00012299,2]
[342281490,1731693045979,-24900.0,0.0001237,2]
[342281491,1731693045991,-1756.6068131,0.00013415,2]
[342281859,1731693049688,253.44,0.00010959,2]
[342283618,1731693070719,177.38,0.00010959,2]
[342283633,1731693766347,1819.86824216,0.00026,60]
[342283680,1731694186731,-1871.123493,0.00017,30]
[342283684,1731694215012,1000.0,0.00026,60]
[342283713,1731694232117,-576.5965889,0.00012111,2]
[342283714,1731694232127,-73.66492626,0.00012455,2]
[342283748,1731694236278,-266853.876507,0.00022,30]
[342283806,1731694238314,-226.33507374,0.00012455,2]
[342283808,1731694238324,-300.0,0.00012455,2]
[342283810,1731694238333,-1058.85737276,0.00012456,2]
[342283962,1731694240101,-23841.14262724,0.00012456,2]
[342283963,1731694240112,-576.5965889,0.00012608,2]
[342283964,1731694240121,-3902.73677951,0.000129,2]
[342283965,1731694240132,-318.8509806,0.00012936,2]
[342283966,1731694240142,-10494.69956213,0.00012936,2]
[342283967,1731694240152,-3462.04466778,0.00013,2]
[342283968,1731694240162,-151.0,0.00013412,2]
[342283969,1731694240171,-151.0,0.00013412,2]
[342283970,1731694240181,-151.0,0.00013412,2]
[342283971,1731694240190,-151.0,0.00013412,2]
[342283972,1731694240200,-150.01,0.00013414,2]
[342283973,1731694240210,-3553.01534329,0.00013414,2]
[342283974,1731694240220,-204.234214,0.00013414,2]
[342283975,1731694240230,-151.0,0.00013414,2]
[342283976,1731694240240,-151.0,0.00013414,2]
[342283977,1731694240250,-151.0,0.00013414,2]
[342283978,1731694240259,-151.0,0.00013512,2]
[342283979,1731694240269,-151.0,0.0001354,2]
[342283980,1731694240279,-151.0,0.0001354,2]
[342283981,1731694240288,-213.957961,0.0001354,2]
[342283982,1731694240297,-213.957961,0.0001354,2]
[342283983,1731694240307,-151.0,0.0001354,2]
[342283984,1731694240316,-151.0,0.00013598,2]
[342283985,1731694240326,-151.0,0.00013598,2]
[342283986,1731694240336,-151.0,0.00013598,2]
[342283987,1731694240346,-213.957961,0.00013598,2]
[342283988,1731694240355,-213.957961,0.00013598,2]
[342283989,1731694240365,-151.0,0.00013598,2]
[342283990,1731694240374,-157.063331,0.00013598,2]
[342283991,1731694240384,-212.02908623,0.00013598,2]
[342283992,1731694240393,-151.0,0.00013598,2]
[342283993,1731694240402,-210.449755,0.00013598,2]
[342283994,1731694240412,-1000.0,0.00013598,2]
[342283995,1731694240421,-5463.77290662,0.00013598,2]
[342283996,1731694240432,-153.0000001,0.000136,2]
[342283997,1731694240441,-212.02908623,0.00013649,2]
[342283998,1731694240450,-151.0,0.00013652,2]
[342283999,1731694240460,-420.0,0.00013667,2]
[342284000,1731694240469,-500.0,0.00013673,2]
[342284001,1731694240479,-500.48034055,0.00013673,2]
[342284002,1731694240488,-162.31654385,0.00013673,2]
[342284237,1731694243124,-2172.8999999,0.00013414,2]
[342284241,1731694243155,-491.86150757,0.00013414,2]
[342284243,1731694243164,-500.82632374,0.00013673,2]
[342284245,1731694243174,-500.0,0.00013673,2]
[342284247,1731694243183,-500.0,0.00013673,2]
[342284249,1731694243193,-502.37819721,0.00013673,2]
[342284251,1731694243202,-338.12148605,0.00013673,2]
[342284254,1731694243211,-465.42118634,0.00013673,2]
[342284256,1731694243220,-151.0,0.00013673,2]
[342284258,1731694243229,-151.0,0.00013673,2]
[342284260,1731694243239,-151.0,0.00013673,2]
[342284262,1731694243248,-151.0,0.00013673,2]
[342284264,1731694243257,-151.0,0.00013673,2]
[342284266,1731694243267,-151.0,0.00013673,2]
[342284268,1731694243277,-153.940518,0.00013673,2]
[342284270,1731694243286,-153.940518,0.00013673,2]
[342284272,1731694243295,-151.0,0.00013673,2]
[342284274,1731694243304,-151.0,0.00013673,2]
[342284275,1731694243314,-153.940518,0.00013673,2]
[342284278,1731694243324,-153.940518,0.00013673,2]
[342284280,1731694243333,-213.957961,0.00013673,2]
[342284282,1731694243343,-213.957961,0.00013673,2]
[342284284,1731694243352,-213.957961,0.00013673,2]
[342284286,1731694243361,-213.957961,0.00013673,2]
[342284288,1731694243371,-151.0,0.00013673,2]
[342284290,1731694243380,-259.12453,0.00013673,2]
[342284292,1731694243390,-151.0,0.00013673,2]
[342284294,1731694243399,-151.0,0.00013673,2]
[342284296,1731694243408,-151.0,0.0001369,2]
[342284298,1731694243418,-151.0,0.0001369,2]
[342284300,1731694243427,-153.940518,0.0001369,2]
[342284302,1731694243436,-153.940518,0.0001369,2]
[342284304,1731694243446,-500.0,0.00013698,2]
[342284306,1731694243456,-641.1319767,0.00013698,2]
[342284308,1731694243466,-500.0,0.00013698,2]
[342284310,1731694243475,-439.91954408,0.00013698,2]
[342284312,1731694243484,-500.0,0.00013698,2]
[342284314,1731694243494,-500.0,0.00013698,2]
[342284316,1731694243504,-160.64229731,0.00013698,2]
[342284318,1731694243513,-528.55640714,0.00013698,2]
[342284320,1731694243523,-129.54159186,0.00013698,2]
[342288686,1731694458429,-150.0,0.00026015,120]
[342288687,1731694458453,-150.0,0.00026029,120]
[342288688,1731694458475,-560.49082,0.00026137,120]
[342288689,1731694458616,-191.80849675,0.00026137,120]
[342288690,1731694458734,-280.42162388,0.00026137,120]
[342288691,1731694458758,-150.0,0.00026714,120]
[342288692,1731694458780,-191.80849675,0.00027,120]
[342288693,1731694458806,-2262.73476064,0.00028099,120]
[342288694,1731694459034,-622.23012063,0.00028099,120]
[342288695,1731694459056,-346.93847,0.000284,120]
[342288696,1731694459080,-313.55235,0.000284,120]
[342288697,1731694459103,-500.0,0.000284,120]
[342288698,1731694459129,-200.0,0.000284,120]
[342288699,1731694459153,-170.091,0.00028573,120]
[342288700,1731694459175,-1331.7393491,0.000286,120]
[342288701,1731694459201,-150.0,0.00028934,120]
[342288702,1731694482540,224.55049974,0.00026137,120]
[342288703,1731694507885,318.55,0.000287,120]
[342288705,1731694849436,2596.46839315,0.00028219,120]
[342288708,1731695103396,1000.0,0.00029175,120]
[342288709,1731695120789,924.15532963,0.00029175,120]
[342288710,1731695120812,75.84467037,0.00029175,120]
[342288799,1731695432251,-361.30998,0.00012482,2]
[342288801,1731695432262,-700.33768559,0.00012482,2]
[342288836,1731695438355,-0.71597844,0.00012482,2]
[342288837,1731695438451,-828.15257339,0.00012482,2]
[342288838,1731695438461,-6372.7189335,0.00012608,2]
[342288839,1731695438471,-151.0,0.00013412,2]
[342288840,1731695438480,-300.0,0.00013412,2]
[342288841,1731695438490,-151.0,0.00013414,2]
[342288842,1731695438500,-342.24572591,0.00013536,2]
[342288843,1731695438510,-151.0,0.00013598,2]
[342288844,1731695438520,-159.02181468,0.00013598,2]
[342288845,1731695438530,-10494.69956213,0.00013599,2]
[342288846,1731695438540,-465.02105931,0.00013639,2]
[342288847,1731695438549,-159.02181467,0.00013665,2]
[342288848,1731695438558,-501.20866505,0.00013673,2]
[342288849,1731695438567,-264.72119538,0.00013673,2]
[342288850,1731695438576,-500.0,0.00013673,2]
[342288851,1731695438586,-80.18865393,0.00013673,2]
[342289854,1731695495049,2336.82155383,0.00028219,120]
[342289855,1731695522364,274.62,0.00010959,2]
[342289856,1731695532958,228.85,0.00010959,2]
[342289857,1731695543755,190.71,0.00010959,2]
[342289858,1731695554638,158.93,0.00010959,2]
[342289859,1731695565090,794.65,0.00010959,2]
[342289866,1731696141132,2103.13939845,0.00028219,120]
[342289868,1731696183408,4182.4698896,0.00029175,120]
[342289869,1731696228614,1331.7393491,0.000286,120]
[342289870,1731696228638,1331.7393491,0.000286,120]
[342289871,1731696241570,860.49082,0.000284,120]
[342289872,1731696248718,2884.96488127,0.00028099,120]
[342289873,1731696262042,191.80849675,0.00027,120]
[342289891,1731696279560,745.65172469,0.00026137,120]
[342289916,1731696632420,-3154.4594368,0.00012691,2]
[342289918,1731696632430,-300.0,0.00013338,2]
[342289920,1731696632439,-300.0,0.00013338,2]
[342289922,1731696632448,-52.22393908,0.00013339,2]
[342289937,1731696632596,-1133.12684086,0.00013339,2]
[342289994,1731696638489,-427.31163591,0.00013339,2]
[342290010,1731696638630,-335.35264664,0.00013339,2]
[342290012,1731696638642,-990.0,0.00013339,2]
[342290412,1731696643398,-4767.91731332,0.00013339,2]
[342290703,1731696646471,-395.9842034,0.00013339,2]
[342290709,1731696646518,-2324.08761127,0.00013339,2]
[342297997,1731697559928,170.052252,0.00023836,120]
[342298058,1731697832644,-250.0,0.0001237,2]
[342298060,1731697832654,-130.94793585,0.00012436,2]
[342298062,1731697832666,-2827.91026338,0.00012436,2]
[342298064,1731697832729,-643.26160237,0.00012436,2]
[342298065,1731697832739,-500.65213173,0.00012591,2]
[342298066,1731697832749,-416.785039,0.00012624,2]
[342298067,1731697832759,-192.2093756,0.00012707,2]
[342298068,1731697832769,-1849.43378929,0.00012966,2]
[342298069,1731697832781,-286.6862773,0.00012966,2]
[342298074,1731697838679,-820.21442848,0.00012966,2]
[342298709,1731697845188,334.96,0.00010959,2]
[342304937,1731698819872,1000.0,0.00026,60]
[342304983,1731699031895,-165.854,0.0001224,2]
[342304984,1731699031905,-300.0,0.00012641,2]
[342304985,1731699031915,-300.0,0.00012641,2]
[342304986,1731699031925,-8116.3005308,0.00012642,2]
[342304987,1731699031937,-690.5823198,0.00012642,2]
[342305391,1731699045931,-1687.81671153,0.00012642,2]
[342305393,1731699045940,-7747.04060313,0.000129,2]
[342305789,1731700232076,-2438.7772412,0.0001227,2]
[342305790,1731700232086,-250.0,0.00012567,2]
[342305791,1731700232096,-257.3623642,0.00012651,2]
[342305792,1731700232106,-6301.44499291,0.00012707,2]
[342305899,1731700238191,-4193.25456922,0.00012707,2]
[342305900,1731700238200,-300.0,0.0001281,2]
[342305902,1731700238210,-300.0,0.0001281,2]
[342305904,1731700238219,-5192.07372871,0.000129,2]
[342305906,1731700238229,-465.00105297,0.00012925,2]
[342305908,1731700238238,-3997.14226119,0.00013338,2]
[342305910,1731700238247,-299.562388,0.00013338,2]
[342305912,1731700238258,-151.024776,0.00013338,2]
[342305914,1731700238267,-151.024776,0.00013338,2]
[342305916,1731700238278,-151.0,0.00013338,2]
[342305918,1731700238287,-408.453209,0.00013338,2]
[342305920,1731700238297,-408.453209,0.00013338,2]
[342305922,1731700238307,-151.0,0.00013338,2]
[342305924,1731700238316,-151.0,0.00013338,2]
[342305926,1731700238326,-4306.11735238,0.00013492,2]
[342305929,1731700238336,-151.0,0.00013498,2]
[342305931,1731700238345,-151.024776,0.00013499,2]
[342305933,1731700238355,-151.024776,0.00013499,2]
[342305935,1731700238367,-151.0,0.00013499,2]
[342305937,1731700238377,-212.1920262,0.000135,2]
[342305939,1731700238386,-151.0,0.00013572,2]
[342305941,1731700238396,-151.0,0.00013572,2]
[342305943,1731700238405,-249.75,0.00013572,2]
[342305945,1731700238415,-249.75,0.00013572,2]
[342305947,1731700238424,-151.0,0.00013572,2]
[342305949,1731700238433,-151.0,0.00013572,2]
[342305951,1731700238443,-210.93175396,0.00013572,2]
[342305953,1731700238452,-408.453209,0.00013573,2]
[342305955,1731700238463,-408.453209,0.00013573,2]
[342305957,1731700238473,-151.0,0.00013573,2]
[342305959,1731700238482,-556.03880533,0.00013573,2]
[342305961,1731700238492,-151.0,0.00013573,2]
[342305963,1731700238501,-151.024776,0.00013579,2]
[342305965,1731700238511,-151.024776,0.00013579,2]
[342305967,1731700238521,-556.03880532,0.00013579,2]
[342305969,1731700238530,-556.03880532,0.00013586,2]
[342305971,1731700238539,-556.03880532,0.00013592,2]
[342305972,1731700238548,-151.0,0.00013598,2]
[342305974,1731700238558,-151.0,0.00013598,2]
[342305976,1731700238568,-297.737043,0.00013598,2]
[342305978,1731700238578,-297.737043,0.00013598,2]
[342305980,1731700238587,-151.024776,0.00013598,2]
[342305982,1731700238597,-151.024776,0.00013598,2]
[342305984,1731700238607,-151.024776,0.00013598,2]
[342305986,1731700238618,-151.024776,0.00013598,2]
[342305988,1731700238627,-408.453209,0.00013598,2]
[342305990,1731700238637,-408.453209,0.00013598,2]
[342305992,1731700238646,-408.453209,0.00013598,2]
[342305994,1731700238656,-408.453209,0.00013598,2]
[342305996,1731700238666,-151.0,0.00013598,2]
[342305998,1731700238676,-151.0,0.00013598,2]
[342306000,1731700238686,-556.03880532,0.00013598,2]
[342306002,1731700238695,-151.0,0.00013598,2]
[342306004,1731700238705,-151.0,0.00013598,2]
[342306006,1731700238714,-4404.1210828,0.00013598,2]
[342306007,1731700238723,-1000.0,0.00013598,2]
[342306010,1731700238735,-212.5673204,0.00013598,2]
[342306012,1731700238745,-151.0,0.00013599,2]
[342306014,1731700238754,-151.0,0.00013599,2]
[342306016,1731700238771,-151.0,0.00013599,2]
[342306018,1731700238784,-151.0,0.00013599,2]
[342306020,1731700238794,-249.75,0.00013599,2]
[342306022,1731700238803,-249.75,0.00013599,2]
[342306023,1731700238813,-151.0,0.00013599,2]
[342306024,1731700238822,-151.0,0.00013599,2]